[Event "*** Titled Tuesday 3|2 Blitz"]
[Site "Chess.com"]
[Date "2015.04.07"]
[Round "7"]
[White "petrpalachev"]
[Black "facu57"]
[Result "1/2-1/2"]
[WhiteElo "2416"]
[BlackElo "2134"]
[TimeControl "180+2"]
[EndTime "12:35:04 PDT"]
[Termination "Game drawn by repetition"]

1. d4 {[%clk 0:03:01.9]} 1... c6 {[%clk 0:03:01.1]} 2. c4 {[%clk 0:03:01.4]}
2... d5 {[%clk 0:03:03]} 3. Nf3 {[%clk 0:03:02.3]} 3... e6 {[%clk 0:02:58.3]} 4.
e3 {[%clk 0:02:55.3]} 4... Nf6 {[%clk 0:02:55.8]} 5. b3 {[%clk 0:02:55.8]} 5...
Bd6 {[%clk 0:02:55.4]} 6. Bb2 {[%clk 0:02:56.8]} 6... O-O {[%clk 0:02:55.6]} 7.
Bd3 {[%clk 0:02:58.4]} 7... Nbd7 {[%clk 0:02:55.9]} 8. Nbd2 {[%clk 0:03:00]}
8... b6 {[%clk 0:02:57.1]} 9. e4 {[%clk 0:03:00.3]} 9... dxe4 {[%clk 0:02:57.8]}
10. Nxe4 {[%clk 0:03:02.2]} 10... Be7 {[%clk 0:02:57.6]} 11. O-O {[%clk
0:03:00.9]} 11... Bb7 {[%clk 0:02:58.7]} 12. Qe2 {[%clk 0:02:58.8]} 12... c5
{[%clk 0:03:00]} 13. Rad1 {[%clk 0:02:57.5]} 13... Qc7 {[%clk 0:02:59.6]} 14.
Nxf6+ {[%clk 0:02:55.4]} 14... Bxf6 {[%clk 0:02:58.1]} 15. Be4 {[%clk
0:02:50.9]} 15... cxd4 {[%clk 0:02:56.9]} 16. Bxb7 {[%clk 0:02:47.2]} 16... Qxb7
{[%clk 0:02:56.3]} 17. Nxd4 {[%clk 0:02:48.7]} 17... Rad8 {[%clk 0:02:56.5]} 18.
Nf3 {[%clk 0:02:44.6]} 18... Qc7 {[%clk 0:02:55.5]} 19. Bxf6 {[%clk 0:02:45]}
19... Nxf6 {[%clk 0:02:56.2]} 20. g3 {[%clk 0:02:46.9]} 20... h6 {[%clk
0:02:56.2]} 21. Ne5 {[%clk 0:02:47.3]} 21... Nd7 {[%clk 0:02:54]} 22. Nxd7
{[%clk 0:02:46.3]} 22... Rxd7 {[%clk 0:02:54.9]} 23. Rxd7 {[%clk 0:02:48.2]}
23... Qxd7 {[%clk 0:02:56.4]} 24. Rd1 {[%clk 0:02:50.1]} 24... Qc7 {[%clk
0:02:57.2]} 25. Qd2 {[%clk 0:02:51.1]} 25... Re8 {[%clk 0:02:56.9]} 26. Qd7
{[%clk 0:02:49.4]} 26... Re7 {[%clk 0:02:57.7]} 27. Qd8+ {[%clk 0:02:50.1]}
27... Kh7 {[%clk 0:02:56]} 28. Qxc7 {[%clk 0:02:51.2]} 28... Rxc7 {[%clk
0:02:56.9]} 29. f4 {[%clk 0:02:53.1]} 29... Kg6 {[%clk 0:02:57.9]} 30. a4 {[%clk
0:02:48.1]} 30... Kf5 {[%clk 0:02:58]} 31. Kf2 {[%clk 0:02:49.1]} 31... Ke4
{[%clk 0:02:57.7]} 32. Ke2 {[%clk 0:02:48.5]} 32... g5 {[%clk 0:02:57]} 33. fxg5
{[%clk 0:02:48.3]} 33... hxg5 {[%clk 0:02:57.1]} 34. Rd8 {[%clk 0:02:47.5]}
34... f5 {[%clk 0:02:56.3]} 35. Rg8 {[%clk 0:02:38.8]} 35... g4 {[%clk
0:02:56.2]} 36. Rh8 {[%clk 0:02:38.8]} 36... e5 {[%clk 0:02:56.7]} 37. h3 {[%clk
0:02:39.1]} 37... gxh3 {[%clk 0:02:57.5]} 38. Rxh3 {[%clk 0:02:41]} 38... Rg7
{[%clk 0:02:58.2]} 39. Rh4+ {[%clk 0:02:40.9]} 39... f4 {[%clk 0:02:58.6]} 40.
gxf4 {[%clk 0:02:42]} 40... exf4 {[%clk 0:03:00.1]} 41. Kf2 {[%clk 0:02:34]}
41... Rg3 {[%clk 0:02:58]} 42. Rh7 {[%clk 0:02:33.8]} 42... Rxb3 {[%clk
0:02:57.8]} 43. Rxa7 {[%clk 0:02:34.5]} 43... Rb2+ {[%clk 0:02:59.3]} 44. Ke1
{[%clk 0:02:34.6]} 44... f3 {[%clk 0:02:56]} 45. a5 {[%clk 0:02:34.1]} 45...
bxa5 {[%clk 0:02:49]} 46. Rxa5 {[%clk 0:02:36]} 46... Kd4 {[%clk 0:02:48.7]} 47.
Rf5 {[%clk 0:02:36]} 47... Ke3 {[%clk 0:02:45.5]} 48. Re5+ {[%clk 0:02:36.1]}
48... Kf4 {[%clk 0:02:46.5]} 49. Re8 {[%clk 0:02:35.7]} 49... Rc2 {[%clk
0:02:46.9]} 50. Rc8 {[%clk 0:02:29.3]} 50... Ke4 {[%clk 0:02:45.4]} 51. Re8+
{[%clk 0:02:25.1]} 51... Kd3 {[%clk 0:02:45.2]} 52. Rf8 {[%clk 0:02:24.2]} 52...
Ke3 {[%clk 0:02:35.5]} 53. Re8+ {[%clk 0:02:24.3]} 53... Kf4 {[%clk 0:02:35.8]}
54. Rf8+ {[%clk 0:02:25.3]} 54... Kg3 {[%clk 0:02:31.8]} 55. Rg8+ {[%clk
0:02:24.6]} 55... Kf4 {[%clk 0:02:30.4]} 56. Rh8 {[%clk 0:02:22.2]} 56... Kg3
{[%clk 0:02:23.8]} 57. Rg8+ {[%clk 0:02:21.5]} 57... Kf4 {[%clk 0:02:24.3]} 58.
Rh8 {[%clk 0:02:20.2]} 58... Re2+ {[%clk 0:02:25]} 59. Kf1 {[%clk 0:02:19.2]}
59... Re5 {[%clk 0:02:25.8]} 60. Rd8 {[%clk 0:02:09]} 60... Ke3 {[%clk
0:02:25.1]} 61. Rd5 {[%clk 0:02:02.9]} 61... Re4 {[%clk 0:02:22.8]} 62. c5
{[%clk 0:02:02.8]} 62... Rc4 {[%clk 0:02:23.6]} 63. Re5+ {[%clk 0:02:02.5]}
63... Kf4 {[%clk 0:02:24.5]} 64. Rh5 {[%clk 0:01:59.8]} 64... Kg4 {[%clk
0:02:22.7]} 65. Rd5 {[%clk 0:01:58.3]} 65... Kg3 {[%clk 0:02:23.1]} 66. Rg5+
{[%clk 0:01:59.1]} 66... Kf4 {[%clk 0:02:24.4]} 67. Rh5 {[%clk 0:01:58.1]} 67...
Rc1+ {[%clk 0:02:21.2]} 68. Kf2 {[%clk 0:01:59]} 68... Rc2+ {[%clk 0:02:23.1]}
69. Kf1 {[%clk 0:02:00.4]} 69... Ke4 {[%clk 0:02:21.4]} 70. Rg5 {[%clk
0:01:56.2]} 70... Rc3 {[%clk 0:02:17.5]} 71. Rh5 {[%clk 0:01:53.6]} 71... Rc1+
{[%clk 0:02:17.4]} 72. Kf2 {[%clk 0:01:54.4]} 72... Rc2+ {[%clk 0:02:19.3]} 73.
Kf1 {[%clk 0:01:54.5]} 73... Ke3 {[%clk 0:02:20.5]} 74. Re5+ {[%clk 0:01:55]}
74... Kd4 {[%clk 0:02:20.2]} 75. Rf5 {[%clk 0:01:54.2]} 75... Ke4 {[%clk
0:02:21.1]} 76. Rh5 {[%clk 0:01:55.4]} 76... Kf4 {[%clk 0:02:21.9]} 77. Rd5
{[%clk 0:01:52]} 77... Kg3 {[%clk 0:02:12.6]} 78. Rg5+ {[%clk 0:01:51.9]} 78...
Kh4 {[%clk 0:02:13.4]} 79. Rd5 {[%clk 0:01:50.9]} 79... Kg4 {[%clk 0:02:14.8]}
80. Re5 {[%clk 0:01:50.2]} 80... Kf4 {[%clk 0:02:14.1]} 81. Rh5 {[%clk
0:01:50.7]} 81... Rc1+ {[%clk 0:02:13.7]} 82. Kf2 {[%clk 0:01:51.3]} 82... Rc2+
{[%clk 0:02:15.6]} 83. Kf1 {[%clk 0:01:52.5]} 83... Ke3 {[%clk 0:02:15.9]} 84.
Re5+ {[%clk 0:01:52.9]} 84... Kd4 {[%clk 0:02:17.1]} 85. Rf5 {[%clk 0:01:53.6]}
85... Ke4 {[%clk 0:02:17.2]} 86. Rh5 {[%clk 0:01:54.4]} 86... Rc1+ {[%clk
0:02:17.2]} 87. Kf2 {[%clk 0:01:55.5]} 87... Rc2+ {[%clk 0:02:19.1]} 88. Kf1
{[%clk 0:01:57.2]} 88... Kf4 {[%clk 0:02:19.5]} 89. Rd5 {[%clk 0:01:57]} 89...
Kg3 {[%clk 0:02:08.1]} 90. Rg5+ {[%clk 0:01:57.5]} 90... Kh3 {[%clk 0:02:07.9]}
91. Rf5 {[%clk 0:01:56.4]} 91... Kg4 {[%clk 0:02:07.9]} 92. Rd5 {[%clk 0:01:57]}
92... Rc4 {[%clk 0:02:02.1]} 93. Kf2 {[%clk 0:01:57.7]} 93... Rc2+ {[%clk
0:01:55.5]} 94. Kf1 {[%clk 0:01:57.6]} 94... Kg3 {[%clk 0:01:56.5]} 95. Rg5+
{[%clk 0:01:58]} 95... Kf4 {[%clk 0:01:58]} 96. Rh5 {[%clk 0:01:58.9]} 96... Kg4
{[%clk 0:01:58.6]} 97. Rd5 {[%clk 0:01:59.1]} 97... Kg3 {[%clk 0:01:59.8]} 98.
Rg5+ {[%clk 0:01:59.8]} 98... Kf4 {[%clk 0:02:01.7]} 99. Rd5 {[%clk 0:02:00.6]}
99... Ke4 {[%clk 0:02:03.1]} 100. Rh5 {[%clk 0:02:01.5]} 100... Kd4 {[%clk
0:02:02]} 101. Rf5 {[%clk 0:02:02.3]} 101... Rc3 {[%clk 0:01:56.7]} 102. Kf2
{[%clk 0:02:03.4]} 102... Ke4 {[%clk 0:01:57.7]} 103. Rh5 {[%clk 0:02:03.2]}
103... Rc2+ {[%clk 0:01:59.6]} 104. Kf1 {[%clk 0:02:03.9]} 104... Kf4 {[%clk
0:02:00.8]} 105. Rd5 {[%clk 0:02:04.2]} 105... Rh2 {[%clk 0:01:56.1]} 106. c6
{[%clk 0:02:02.6]} 106... Rc2 {[%clk 0:01:55.1]} 107. Rd6 {[%clk 0:02:03.2]}
107... Ke5 {[%clk 0:01:55.6]} 108. Rh6 {[%clk 0:02:04.1]} 108... Kf5 {[%clk
0:01:56.3]} 109. Rd6 {[%clk 0:02:04.4]} 109... Ke5 {[%clk 0:01:57.7]} 110. Rh6
{[%clk 0:02:05.4]} 110... Kf4 {[%clk 0:01:59]} 111. Rf6+ {[%clk 0:02:05.9]}
111... Ke3 {[%clk 0:02:00.5]} 112. Re6+ {[%clk 0:02:06.8]} 112... Kf4 {[%clk
0:02:01.9]} 113. Kg1 {[%clk 0:02:03.6]} 113... Kg3 {[%clk 0:02:00.9]} 114. Rg6+
{[%clk 0:02:04.1]} 114... Kf4 {[%clk 0:02:00.8]} 115. Kf1 {[%clk 0:02:05.8]}
115... Ke3 {[%clk 0:02:01.5]} 116. Re6+ {[%clk 0:02:06.2]} 116... Kf4 {[%clk
0:02:02.7]} 117. Rf6+ {[%clk 0:02:05.3]} 117... Ke3 {[%clk 0:02:03]} 118. Re6+
{[%clk 0:02:06.4]} 118... Kf4 {[%clk 0:02:04.2]} 1/2-1/2

[Event "*** Titled Tuesday 3|2 Blitz"]
[Site "Chess.com"]
[Date "2015.04.07"]
[Round "8"]
[White "jefferyx"]
[Black "Yaacovn"]
[Result "1-0"]
[WhiteElo "2310"]
[BlackElo "2594"]
[TimeControl "180+2"]
[EndTime "12:41:48 PDT"]
[Termination "jefferyx won by resignation"]

1. e4 {[%clk 0:03:01.9]} 1... c6 {[%clk 0:03:00.7]} 2. d4 {[%clk 0:03:03.1]}
2... d5 {[%clk 0:03:01.3]} 3. e5 {[%clk 0:03:04.6]} 3... Bf5 {[%clk 0:03:02.1]}
4. h4 {[%clk 0:03:05.9]} 4... Qb6 {[%clk 0:03:02.6]} 5. c4 {[%clk 0:03:05]} 5...
dxc4 {[%clk 0:03:02.1]} 6. Nc3 {[%clk 0:03:04.1]} 6... Bd3 {[%clk 0:03:02.9]} 7.
Bxd3 {[%clk 0:03:04.4]} 7... cxd3 {[%clk 0:03:04.8]} 8. Qxd3 {[%clk 0:03:06.3]}
8... e6 {[%clk 0:03:06.1]} 9. Nf3 {[%clk 0:03:04.5]} 9... Qa6 {[%clk 0:03:06.9]}
10. Qc2 {[%clk 0:03:00.4]} 10... Ne7 {[%clk 0:03:06.5]} 11. Bg5 {[%clk
0:02:58.4]} 11... h6 {[%clk 0:03:07.2]} 12. Bxe7 {[%clk 0:02:56.5]} 12... Bxe7
{[%clk 0:03:09.1]} 13. O-O-O {[%clk 0:02:57.6]} 13... Nd7 {[%clk 0:03:10.2]} 14.
Kb1 {[%clk 0:02:58.4]} 14... Nb6 {[%clk 0:03:11.3]} 15. Nd2 {[%clk 0:02:55]}
15... O-O-O {[%clk 0:03:10.3]} 16. Nb3 {[%clk 0:02:42.8]} 16... Kb8 {[%clk
0:03:04]} 17. Ne4 {[%clk 0:02:42.3]} 17... Nd5 {[%clk 0:02:59.8]} 18. a3 {[%clk
0:02:43.4]} 18... Qb5 {[%clk 0:02:53.9]} 19. Rh3 {[%clk 0:02:43.3]} 19... f5
{[%clk 0:02:50.8]} 20. Nec5 {[%clk 0:02:42.4]} 20... Nc7 {[%clk 0:02:45.4]} 21.
h5 {[%clk 0:02:38.3]} 21... Rd5 {[%clk 0:02:42.4]} 22. Rg3 {[%clk 0:02:37.9]}
22... Rg8 {[%clk 0:02:29.2]} 23. Rg6 {[%clk 0:02:38]} 23... Bxc5 {[%clk
0:02:02.7]} 24. Nxc5 {[%clk 0:02:38.7]} 24... Rgd8 {[%clk 0:01:56.1]} 25. Rxg7
{[%clk 0:02:36]} 25... b6 {[%clk 0:01:45.8]} 26. a4 {[%clk 0:02:27.1]} 26... Qb4
{[%clk 0:01:36.8]} 27. Na6+ {[%clk 0:01:56.8]} 27... Nxa6 {[%clk 0:01:26.2]} 28.
Qxc6 {[%clk 0:01:57.6]} 28... R5d7 {[%clk 0:01:08.9]} 29. Rxd7 {[%clk
0:01:57.5]} 29... Rxd7 {[%clk 0:01:10.8]} 30. Qxd7 {[%clk 0:01:59.2]} 30... Qc4
{[%clk 0:00:58.9]} 31. Rc1 {[%clk 0:01:57.1]} 31... Qd3+ {[%clk 0:00:58.1]} 32.
Ka1 {[%clk 0:01:58.2]} 32... Nc5 {[%clk 0:00:59.4]} 33. Qd6+ {[%clk 0:01:59.1]}
1-0

[Event "*** Titled Tuesday 3|2 Blitz"]
[Site "Chess.com"]
[Date "2015.04.07"]
[Round "8"]
[White "lukas_111111"]
[Black "kesarev"]
[Result "1-0"]
[WhiteElo "2336"]
[BlackElo "2205"]
[TimeControl "180+2"]
[EndTime "12:42:14 PDT"]
[Termination "lukas_111111 won by resignation"]

1. e4 {[%clk 0:03:01.9]} 1... g6 {[%clk 0:02:59.9]} 2. d4 {[%clk 0:03:01.7]}
2... Bg7 {[%clk 0:03:01.1]} 3. Nc3 {[%clk 0:02:58.6]} 3... c5 {[%clk 0:03:02.5]}
4. d5 {[%clk 0:02:57.9]} 4... d6 {[%clk 0:03:01.9]} 5. Nf3 {[%clk 0:02:55.5]}
5... Nf6 {[%clk 0:03:02.3]} 6. Bd3 {[%clk 0:02:47.4]} 6... O-O {[%clk 0:03:02]}
7. O-O {[%clk 0:02:48.4]} 7... Na6 {[%clk 0:03:01.5]} 8. h3 {[%clk 0:02:47.2]}
8... Nc7 {[%clk 0:03:00.8]} 9. Bf4 {[%clk 0:02:47.1]} 9... Nd7 {[%clk
0:03:01.1]} 10. Re1 {[%clk 0:02:44.8]} 10... Ne5 {[%clk 0:03:01]} 11. Nxe5
{[%clk 0:02:40.2]} 11... Bxe5 {[%clk 0:03:01]} 12. Bxe5 {[%clk 0:02:39.5]} 12...
dxe5 {[%clk 0:03:01.8]} 13. Nb5 {[%clk 0:02:28.5]} 13... Ne8 {[%clk 0:02:58.1]}
14. c4 {[%clk 0:02:27.1]} 14... a6 {[%clk 0:02:58.1]} 15. Nc3 {[%clk 0:02:28.1]}
15... Nd6 {[%clk 0:02:57.5]} 16. a4 {[%clk 0:02:22.4]} 16... a5 {[%clk
0:02:39.4]} 17. Qd2 {[%clk 0:02:20.9]} 17... Kg7 {[%clk 0:02:36.3]} 18. f4
{[%clk 0:02:18.3]} 18... f6 {[%clk 0:02:36.5]} 19. Rf1 {[%clk 0:02:17.6]} 19...
Bd7 {[%clk 0:02:36.6]} 20. fxe5 {[%clk 0:02:08.7]} 20... fxe5 {[%clk 0:02:37]}
21. Qg5 {[%clk 0:02:09.4]} 21... Nf7 {[%clk 0:02:32.6]} 22. Qh4 {[%clk
0:02:07.4]} 22... e6 {[%clk 0:02:19.9]} 23. Qg3 {[%clk 0:01:58.4]} 23... Qe7
{[%clk 0:02:02.1]} 24. Rf2 {[%clk 0:01:52.8]} 24... h6 {[%clk 0:01:49.6]} 25.
Raf1 {[%clk 0:01:50.3]} 25... Qg5 {[%clk 0:01:49]} 26. Qh2 {[%clk 0:00:55.9]}
26... Nd6 {[%clk 0:01:40.1]} 27. h4 {[%clk 0:00:54]} 27... Qh5 {[%clk
0:01:40.5]} 28. Be2 {[%clk 0:00:53.1]} 1-0

[Event "*** Titled Tuesday 3|2 Blitz"]
[Site "Chess.com"]
[Date "2015.04.07"]
[Round "8"]
[White "MattyDPerrine"]
[Black "ilmago"]
[Result "1-0"]
[WhiteElo "2200"]
[BlackElo "1890"]
[TimeControl "180+2"]
[EndTime "12:42:40 PDT"]
[Termination "MattyDPerrine won by checkmate"]

1. d4 {[%clk 0:02:36.7]} 1... Nf6 {[%clk 0:02:57.7]} 2. c4 {[%clk 0:02:35.1]}
2... g6 {[%clk 0:02:58.7]} 3. Nf3 {[%clk 0:02:35.7]} 3... Bg7 {[%clk 0:02:58.6]}
4. g3 {[%clk 0:02:37.1]} 4... d6 {[%clk 0:03:00]} 5. Bg2 {[%clk 0:02:39]} 5...
O-O {[%clk 0:03:01.5]} 6. O-O {[%clk 0:02:40.9]} 6... c5 {[%clk 0:03:02.2]} 7.
Nc3 {[%clk 0:02:40.4]} 7... Nbd7 {[%clk 0:03:00.7]} 8. e4 {[%clk 0:02:39.2]}
8... cxd4 {[%clk 0:03:00.6]} 9. Nxd4 {[%clk 0:02:41.1]} 9... a6 {[%clk
0:02:55.8]} 10. b3 {[%clk 0:02:40.5]} 10... Qc7 {[%clk 0:02:52.2]} 11. Bb2
{[%clk 0:02:41.1]} 11... e6 {[%clk 0:02:52.8]} 12. Rc1 {[%clk 0:02:41.6]} 12...
Rb8 {[%clk 0:02:52.9]} 13. f4 {[%clk 0:02:38.8]} 13... b6 {[%clk 0:02:52.2]} 14.
e5 {[%clk 0:02:36.9]} 14... dxe5 {[%clk 0:02:51.3]} 15. Nc6 {[%clk 0:02:38.5]}
15... Rb7 {[%clk 0:02:45.6]} 16. Ne7+ {[%clk 0:02:39.6]} 16... Kh8 {[%clk
0:02:42.3]} 17. Nxc8 {[%clk 0:02:41.5]} 17... Rxc8 {[%clk 0:02:40.4]} 18. Bxb7
{[%clk 0:02:40.5]} 18... Qxb7 {[%clk 0:02:42.3]} 19. fxe5 {[%clk 0:02:27.7]}
19... Nxe5 {[%clk 0:02:37.4]} 20. Qe2 {[%clk 0:02:28.6]} 20... Nfd7 {[%clk
0:02:27.8]} 21. Ne4 {[%clk 0:02:29]} 21... Qc6 {[%clk 0:02:23.4]} 22. Rcd1
{[%clk 0:02:25.1]} 22... f5 {[%clk 0:02:16]} 23. Nd6 {[%clk 0:02:06.7]} 23...
Rf8 {[%clk 0:02:11.8]} 24. Qg2 {[%clk 0:02:00.8]} 24... Qc5+ {[%clk 0:02:11.9]}
25. Kh1 {[%clk 0:02:01.9]} 25... Ng4 {[%clk 0:02:02.7]} 26. Bxg7+ {[%clk
0:02:00.6]} 26... Kxg7 {[%clk 0:02:03.6]} 27. Nxf5+ {[%clk 0:01:53.3]} 27...
gxf5 {[%clk 0:01:58.3]} 28. Rxd7+ {[%clk 0:01:54]} 28... Kg6 {[%clk 0:01:59.3]}
29. Qb7 {[%clk 0:01:38.6]} 29... Nf6 {[%clk 0:01:55.1]} 30. Rg7+ {[%clk
0:01:13.8]} 30... Kh6 {[%clk 0:01:55.6]} 31. Rf4 {[%clk 0:01:13.3]} 31... Rh8
{[%clk 0:01:43.9]} 32. Rh4+ {[%clk 0:00:47.4]} 32... Nh5 {[%clk 0:01:44.3]} 33.
Qf7 {[%clk 0:00:48.9]} 33... f4 {[%clk 0:01:32.2]} 34. Qf6# {[%clk 0:00:47.8]}
1-0

[Event "*** Titled Tuesday 3|2 Blitz"]
[Site "Chess.com"]
[Date "2015.04.07"]
[Round "8"]
[White "alturas_pacificas"]
[Black "iFrancisco"]
[Result "1-0"]
[WhiteElo "2133"]
[BlackElo "2202"]
[TimeControl "180+2"]
[EndTime "12:43:46 PDT"]
[Termination "alturas_pacificas won by resignation"]

1. d4 {[%clk 0:03:01.9]} 1... d5 {[%clk 0:03:00.4]} 2. Bf4 {[%clk 0:02:59.4]}
2... e6 {[%clk 0:02:58.4]} 3. e3 {[%clk 0:02:59.7]} 3... Ne7 {[%clk 0:02:59.4]}
4. Bd3 {[%clk 0:02:56.8]} 4... Ng6 {[%clk 0:03:00.2]} 5. Bg3 {[%clk 0:02:57.4]}
5... Bd6 {[%clk 0:02:58.5]} 6. Nf3 {[%clk 0:02:57.2]} 6... O-O {[%clk
0:02:58.3]} 7. Nbd2 {[%clk 0:02:57.3]} 7... b6 {[%clk 0:02:54.3]} 8. c3 {[%clk
0:02:48.1]} 8... Bb7 {[%clk 0:02:54.7]} 9. Qc2 {[%clk 0:02:48.1]} 9... c5 {[%clk
0:02:48.9]} 10. O-O {[%clk 0:02:46]} 10... c4 {[%clk 0:02:48.2]} 11. Bxg6 {[%clk
0:02:45.3]} 11... hxg6 {[%clk 0:02:48.9]} 12. Bxd6 {[%clk 0:02:44.2]} 12... Qxd6
{[%clk 0:02:50.8]} 13. Ne5 {[%clk 0:02:33]} 13... b5 {[%clk 0:02:43.6]} 14. a3
{[%clk 0:02:33.1]} 14... a5 {[%clk 0:02:39.7]} 15. f4 {[%clk 0:02:31.7]} 15...
Nc6 {[%clk 0:02:40.2]} 16. Nxc6 {[%clk 0:02:23.4]} 16... Bxc6 {[%clk 0:02:41.3]}
17. Nf3 {[%clk 0:02:25.3]} 17... Rab8 {[%clk 0:02:38.6]} 18. Ne5 {[%clk
0:02:23.3]} 18... Rfc8 {[%clk 0:02:35.5]} 19. Rf3 {[%clk 0:02:20]} 19... Be8
{[%clk 0:02:30]} 20. Rh3 {[%clk 0:02:15.1]} 20... b4 {[%clk 0:02:30.9]} 21. axb4
{[%clk 0:02:07.1]} 21... axb4 {[%clk 0:02:32]} 22. Qf2 {[%clk 0:02:06.5]} 22...
f6 {[%clk 0:02:25.7]} 23. Ra7 {[%clk 0:01:17.4]} 23... Rc7 {[%clk 0:02:26.9]}
24. Rxc7 {[%clk 0:01:08.6]} 24... Qxc7 {[%clk 0:02:25.1]} 25. Qh4 {[%clk
0:00:51.4]} 25... fxe5 {[%clk 0:02:22.1]} 26. Qh8+ {[%clk 0:00:52.2]} 26... Kf7
{[%clk 0:02:18.1]} 27. Rh7 {[%clk 0:00:53.2]} 27... Kf6 {[%clk 0:01:38.2]} 28.
fxe5+ {[%clk 0:00:53.4]} 28... Kf5 {[%clk 0:01:38.5]} 29. Rxg7 {[%clk
0:00:52.6]} 29... Qa5 {[%clk 0:01:10.5]} 30. Qh4 {[%clk 0:00:43.5]} 30... Qa1+
{[%clk 0:01:08.1]} 31. Kf2 {[%clk 0:00:44.8]} 31... Qxb2+ {[%clk 0:01:09.4]} 32.
Kg3 {[%clk 0:00:46.4]} 1-0

[Event "*** Titled Tuesday 3|2 Blitz"]
[Site "Chess.com"]
[Date "2015.04.07"]
[Round "8"]
[White "bugsbunny444"]
[Black "brauliocuarta"]
[Result "1-0"]
[WhiteElo "2323"]
[BlackElo "2084"]
[TimeControl "180+2"]
[EndTime "12:44:14 PDT"]
[Termination "bugsbunny444 won by resignation"]

1. Nf3 {[%clk 0:03:01.9]} 1... Nf6 {[%clk 0:02:58.3]} 2. c4 {[%clk 0:03:03]}
2... c5 {[%clk 0:02:59.3]} 3. g3 {[%clk 0:03:03.8]} 3... b6 {[%clk 0:03:00.2]}
4. Bg2 {[%clk 0:03:04.7]} 4... Bb7 {[%clk 0:03:01.7]} 5. O-O {[%clk 0:03:06.1]}
5... e6 {[%clk 0:02:58.5]} 6. b3 {[%clk 0:03:07.6]} 6... Be7 {[%clk 0:02:57.8]}
7. Bb2 {[%clk 0:03:09.2]} 7... O-O {[%clk 0:02:57.8]} 8. Nc3 {[%clk 0:03:10.9]}
8... d6 {[%clk 0:02:57.3]} 9. e3 {[%clk 0:03:12.2]} 9... a6 {[%clk 0:02:57.9]}
10. d4 {[%clk 0:03:13.5]} 10... Nbd7 {[%clk 0:02:52.4]} 11. d5 {[%clk
0:03:14.5]} 11... e5 {[%clk 0:02:35.3]} 12. a4 {[%clk 0:03:14.6]} 12... g6
{[%clk 0:02:27.5]} 13. e4 {[%clk 0:03:15.5]} 13... Nh5 {[%clk 0:02:27.1]} 14.
Ne1 {[%clk 0:03:11.3]} 14... Ng7 {[%clk 0:02:21.3]} 15. Nd3 {[%clk 0:03:09.1]}
15... f5 {[%clk 0:02:21.9]} 16. f4 {[%clk 0:03:08.9]} 16... Kh8 {[%clk
0:02:01.9]} 17. Qd2 {[%clk 0:02:58.2]} 17... Bf6 {[%clk 0:01:44.5]} 18. Rae1
{[%clk 0:02:55.9]} 18... exf4 {[%clk 0:01:35.6]} 19. Nxf4 {[%clk 0:02:34.3]}
19... Bd4+ {[%clk 0:01:31.9]} 20. Kh1 {[%clk 0:02:35.2]} 20... Qf6 {[%clk
0:01:17.9]} 21. exf5 {[%clk 0:02:27.1]} 21... gxf5 {[%clk 0:01:18.5]} 22. Ne6
{[%clk 0:02:18.8]} 22... Rf7 {[%clk 0:00:55.7]} 23. Nxd4 {[%clk 0:02:16.1]}
23... Qxd4 {[%clk 0:00:48]} 24. Qc2 {[%clk 0:01:22.2]} 24... Qg4 {[%clk
0:00:25.2]} 25. Ne4 {[%clk 0:01:15.6]} 25... Qg6 {[%clk 0:00:18.2]} 26. Nf2
{[%clk 0:00:47.9]} 26... Raf8 {[%clk 0:00:14.9]} 27. Nh3 {[%clk 0:00:44.5]}
27... Kg8 {[%clk 0:00:12.8]} 28. Nf4 {[%clk 0:00:45.2]} 28... Qh6 {[%clk
0:00:12.3]} 29. Ne6 {[%clk 0:00:41.9]} 29... Nxe6 {[%clk 0:00:10.8]} 30. dxe6
{[%clk 0:00:37.5]} 30... Bxg2+ {[%clk 0:00:11.2]} 31. Qxg2 {[%clk 0:00:39.4]}
31... Re7 {[%clk 0:00:09.6]} 32. exd7 {[%clk 0:00:37.5]} 32... Rxd7 {[%clk
0:00:10.6]} 33. Qd5+ {[%clk 0:00:37.2]} 33... Rdf7 {[%clk 0:00:11.3]} 34. Rxf5
{[%clk 0:00:33.5]} 1-0

[Event "*** Titled Tuesday 3|2 Blitz"]
[Site "Chess.com"]
[Date "2015.04.07"]
[Round "8"]
[White "OIAM03"]
[Black "chesstatour"]
[Result "0-1"]
[WhiteElo "1948"]
[BlackElo "1957"]
[TimeControl "180+2"]
[EndTime "12:44:14 PDT"]
[Termination "chesstatour won on time"]

1. e4 {[%clk 0:03:01.9]} 1... c6 {[%clk 0:02:57.7]} 2. Nc3 {[%clk 0:03:00.3]}
2... d5 {[%clk 0:02:59.6]} 3. Nf3 {[%clk 0:03:00.3]} 3... dxe4 {[%clk
0:02:59.8]} 4. Nxe4 {[%clk 0:03:00.8]} 4... Nf6 {[%clk 0:03:01.7]} 5. Nxf6+
{[%clk 0:03:00.7]} 5... gxf6 {[%clk 0:03:02]} 6. d4 {[%clk 0:02:51.5]} 6... Bf5
{[%clk 0:02:59.1]} 7. Bf4 {[%clk 0:02:50.8]} 7... e6 {[%clk 0:02:59.5]} 8. Bd3
{[%clk 0:02:49.7]} 8... Bxd3 {[%clk 0:02:59.9]} 9. Qxd3 {[%clk 0:02:50.4]} 9...
Bd6 {[%clk 0:03:01.2]} 10. Bxd6 {[%clk 0:02:44.9]} 10... Qxd6 {[%clk 0:03:03.1]}
11. O-O-O {[%clk 0:02:44.8]} 11... Nd7 {[%clk 0:03:03.2]} 12. Kb1 {[%clk
0:02:36.8]} 12... O-O-O {[%clk 0:02:57.9]} 13. Nd2 {[%clk 0:02:12.5]} 13... Nb6
{[%clk 0:02:29.3]} 14. Ne4 {[%clk 0:02:05.3]} 14... Qe7 {[%clk 0:02:28.3]} 15.
c4 {[%clk 0:01:58.8]} 15... f5 {[%clk 0:02:14.3]} 16. Nc5 {[%clk 0:01:46.2]}
16... Rhg8 {[%clk 0:02:08.4]} 17. Qa3 {[%clk 0:01:46.3]} 17... Nxc4 {[%clk
0:01:36.4]} 18. Qxa7 {[%clk 0:01:43.3]} 18... Qc7 {[%clk 0:01:36.4]} 19. Rd3
{[%clk 0:01:24.5]} 19... Qb6 {[%clk 0:01:25.2]} 20. Qxb6 {[%clk 0:01:11.8]}
20... Nxb6 {[%clk 0:01:27.1]} 21. a4 {[%clk 0:01:00.3]} 21... Rxg2 {[%clk
0:01:23]} 22. a5 {[%clk 0:00:59.4]} 22... Nd7 {[%clk 0:01:16]} 23. Na4 {[%clk
0:00:31]} 23... Kc7 {[%clk 0:01:14]} 24. Rf3 {[%clk 0:00:19.3]} 24... Nf6 {[%clk
0:01:09.1]} 25. Nc5 {[%clk 0:00:10.3]} 25... Nd7 {[%clk 0:00:44.3]} 26. Nxd7
{[%clk 0:00:10]} 26... Rxd7 {[%clk 0:00:44.7]} 27. Rf4 {[%clk 0:00:10.8]} 27...
Rd5 {[%clk 0:00:41.4]} 28. b4 {[%clk 0:00:09.3]} 28... Rb5 {[%clk 0:00:41.5]}
29. d5 {[%clk 0:00:06.3]} 29... Rxd5 {[%clk 0:00:42.1]} 30. Kc2 {[%clk
0:00:04.9]} 30... h5 {[%clk 0:00:33.2]} 31. h4 {[%clk 0:00:02]} 31... Rg4 {[%clk
0:00:32.7]} 0-1